fUSD/lending_fUSD_20250209
["ID","MTS","AMOUNT","RATE_DAILY","PERIOD"]
[352371991,1739065852596,-504.31424437,0.00010404,2]
[352371992,1739065852604,-500.0,0.00010404,2]
[352371993,1739065852613,-500.0,0.00010404,2]
[352371994,1739065852622,-505.39100943,0.00010404,2]
[352371995,1739065852631,-506.94292365,0.00010404,2]
[352371996,1739065852641,-500.0,0.00010404,2]
[352371997,1739065852651,-500.0,0.00010404,2]
[352371998,1739065852660,-511.39332701,0.00010404,2]
[352371999,1739065852669,-500.0,0.00010404,2]
[352372000,1739065852678,-500.0,0.00010404,2]
[352372001,1739065852687,-500.0,0.00010404,2]
[352372002,1739065852696,-500.0,0.00010404,2]
[352372003,1739065852705,-500.0,0.00010404,2]
[352372004,1739065852714,-500.0,0.00010404,2]
[352372005,1739065852723,-504.38987862,0.00010404,2]
[352372006,1739065852732,-500.0,0.00010404,2]
[352372007,1739065852741,-500.0,0.00010404,2]
[352372008,1739065852750,-500.0,0.00010404,2]
[352372009,1739065852759,-500.0,0.00010404,2]
[352372010,1739065852768,-500.0,0.00010404,2]
[352372011,1739065852777,-500.0,0.00010404,2]
[352372012,1739065852786,-500.0,0.00010404,2]
[352372013,1739065852795,-500.0,0.00010404,2]
[352372014,1739065852807,-398.25949843,0.00010404,2]
[352372015,1739065852817,-500.0,0.00010404,2]
[352372016,1739065852827,-502.13109109,0.00010404,2]
[352372017,1739065852836,-500.0,0.00010404,2]
[352372018,1739065852846,-500.0,0.00010404,2]
[352372019,1739065852857,-500.0,0.00010404,2]
[352372020,1739065852867,-500.0,0.00010404,2]
[352372021,1739065852877,-500.0,0.00010404,2]
[352372022,1739065852886,-500.0,0.00010404,2]
[352372023,1739065852896,-500.0,0.00010404,2]
[352372024,1739065852905,-500.0,0.00010404,2]
[352372025,1739065852913,-500.0,0.00010404,2]
[352372026,1739065852922,-500.0,0.00010404,2]
[352372027,1739065852932,-500.0,0.00010404,2]
[352372028,1739065852941,-190.42590649,0.00010404,2]
[352372029,1739065853955,-500.0,0.00010128,2]
[352372030,1739065853965,-500.0,0.00010129,2]
[352372031,1739065853976,-500.0,0.00010129,2]
[352372032,1739065853986,-500.0,0.00010129,2]
[352372033,1739065853996,-500.0,0.00010129,2]
[352372034,1739065854006,-503.27508226,0.00010129,2]
[352372035,1739065854017,-500.0,0.00010265,2]
[352372036,1739065854027,-500.0,0.00010266,2]
[352372037,1739065854036,-414.09,0.00010266,2]
[352372038,1739065854047,-500.0,0.00010266,2]
[352372039,1739065854056,-500.0,0.00010266,2]
[352372040,1739065854067,-500.0,0.00010266,2]
[352372041,1739065854076,-500.0,0.00010402,2]
[352372042,1739065854088,-500.0,0.00010403,2]
[352372043,1739065854100,-500.0,0.00010403,2]
[352372044,1739065854109,-500.0,0.00010403,2]
[352372045,1739065854119,-500.0,0.00010403,2]
[352372046,1739065854130,-309.57409351,0.00010404,2]
[352372047,1739065854140,-500.0,0.00010404,2]
[352372048,1739065854151,-500.0,0.00010404,2]
[352372049,1739065854162,-500.0,0.00010404,2]
[352372050,1739065854174,-517.69,0.00010404,2]
[352372051,1739065854184,-503.38780814,0.00010404,2]
[352372052,1739065854195,-500.0,0.00010404,2]
[352372053,1739065854204,-500.0,0.00010404,2]
[352372054,1739065854214,-500.0,0.00010404,2]
[352372055,1739065854225,-554.93,0.00010404,2]
[352372056,1739065854236,-500.0,0.00010404,2]
[352372057,1739065854246,-509.64269222,0.00010404,2]
[352372058,1739065854258,-500.0,0.00010404,2]
[352372059,1739065854269,-500.0,0.00010404,2]
[352372060,1739065854279,-500.0,0.00010404,2]
[352372061,1739065854289,-500.0,0.00010404,2]
[352372062,1739065854298,-500.0,0.00010404,2]
[352372063,1739065854308,-1083.06,0.00010404,2]
[352372064,1739065854318,-501.86895722,0.00010404,2]
[352372065,1739065854329,-500.0,0.00010404,2]
[352372066,1739065854339,-500.0,0.00010404,2]
[352372067,1739065854349,-500.0,0.00010404,2]
[352372068,1739065854360,-500.0,0.00010404,2]
[352372069,1739065854370,-533.58,0.00010404,2]
[352372070,1739065854380,-899.57,0.00010404,2]
[352372071,1739065854390,-500.0,0.00010404,2]
[352372072,1739065854400,-576.40982251,0.00010404,2]
[352372073,1739065854410,-2827.44,0.00010404,2]
[352372074,1739065854421,-500.0,0.00010404,2]
[352372075,1739065854431,-500.0,0.00010404,2]
[352372076,1739065854441,-500.0,0.00010404,2]
[352372077,1739065854451,-500.0,0.00010404,2]
[352372078,1739065854462,-814.38,0.00010404,2]
[352372079,1739065854472,-500.0,0.00010404,2]
[352372080,1739065854482,-1161.87,0.00010404,2]
[352372081,1739065854492,-500.0,0.00010404,2]
[352372082,1739065854503,-500.0,0.00010404,2]
[352372083,1739065854514,-1281.49,0.00010404,2]
[352372084,1739065854524,-500.0,0.00010404,2]
[352372085,1739065854534,-1000.0,0.00010404,2]
[352372086,1739065854545,-500.0,0.00010404,2]
[352372087,1739065854561,-500.0,0.00010404,2]
[352372088,1739065854576,-1007.35,0.00010404,2]
[352372089,1739065854591,-500.0,0.00010404,2]
[352372090,1739065854604,-500.0,0.00010404,2]
[352372091,1739065854617,-500.0,0.00010404,2]
[352372092,1739065854631,-500.0,0.00010404,2]
[352372093,1739065854645,-500.0,0.00010404,2]
[352372094,1739065854658,-1979.78,0.00010404,2]
[352372095,1739065854671,-500.0,0.00010404,2]
[352372096,1739065854686,-500.0,0.00010404,2]
[352372097,1739065854698,-2191.6,0.00010404,2]
[352372098,1739065854710,-500.0,0.00010404,2]
[352372099,1739065854720,-500.0,0.00010404,2]
[352372100,1739065854735,-500.0,0.00010404,2]
[352372101,1739065854748,-500.0,0.00010404,2]
[352372102,1739065854761,-500.0,0.00010404,2]
[352372103,1739065854774,-500.0,0.00010404,2]
[352372104,1739065854788,-504.82715934,0.00010404,2]
[352372105,1739065854802,-374.57,0.00010404,2]
[352372106,1739065854814,-501.15616109,0.00010406,2]
[352372107,1739065854828,-151.341631,0.00010407,2]
[352372108,1739065854842,-818.52,0.00010414,2]
[352372109,1739065854854,-607.01,0.00010427,2]
[352372110,1739065854868,-500.0,0.00010539,2]
[352372111,1739065854880,-847.54,0.00010539,2]
[352372112,1739065854893,-500.0,0.00010539,2]
[352372113,1739065854908,-500.0,0.00010539,2]
[352372114,1739065854919,-500.0,0.0001054,2]
[352372115,1739065854932,-510.11431033,0.0001054,2]
[352372116,1739065854943,-490.75461084,0.0001054,2]
[352372117,1739065854954,-500.0,0.0001054,2]
[352372118,1739065854966,-777.99,0.0001054,2]
[352372119,1739065854984,-500.0,0.0001054,2]
[352372120,1739065854995,-580.08,0.0001054,2]
[352372121,1739065855006,-500.0,0.0001054,2]
[352372122,1739065855017,-500.0,0.0001054,2]
[352372123,1739065855028,-500.0,0.0001054,2]
[352372124,1739065855041,-500.0,0.0001054,2]
[352372125,1739065855055,-500.0,0.0001054,2]
[352372126,1739065855067,-668.51,0.0001054,2]
[352372127,1739065855078,-500.0,0.0001054,2]
[352372128,1739065855090,-500.0,0.0001054,2]
[352372129,1739065855105,-510.55916298,0.0001054,2]
[352372130,1739065855116,-500.0,0.0001054,2]
[352372131,1739065855130,-500.0,0.0001054,2]
[352372132,1739065855143,-500.0,0.0001054,2]
[352372133,1739065855154,-562.51,0.0001054,2]
[352372134,1739065855166,-730.87,0.0001054,2]
[352372135,1739065855178,-734.963011,0.0001054,2]
[352372136,1739065855189,-500.0,0.0001054,2]
[352372137,1739065855200,-500.0,0.0001054,2]
[352372138,1739065855212,-778.15,0.0001054,2]
[352372139,1739065855223,-500.0,0.0001054,2]
[352372140,1739065855235,-828.926949,0.0001054,2]
[352372141,1739065855246,-500.0,0.0001054,2]
[352372142,1739065855263,-513.57720128,0.0001054,2]
[352372143,1739065855276,-500.0,0.0001054,2]
[352372144,1739065855289,-500.0,0.0001054,2]
[352372145,1739065855301,-500.0,0.0001054,2]
[352372146,1739065855314,-782.31,0.0001054,2]
[352372147,1739065855327,-500.0,0.0001054,2]
[352372148,1739065855339,-500.0,0.0001054,2]
[352372149,1739065855352,-762.04,0.0001054,2]
[352372150,1739065855363,-500.0,0.0001054,2]
[352372151,1739065855377,-500.0,0.0001054,2]
[352372152,1739065855390,-513.33,0.0001054,2]
[352372153,1739065855401,-500.0,0.0001054,2]
[352372154,1739065855414,-500.0,0.0001054,2]
[352372155,1739065855427,-783.32,0.0001054,2]
[352372156,1739065855440,-848.63,0.0001054,2]
[352372157,1739065855451,-511.02895261,0.0001054,2]
[352372158,1739065855465,-500.0,0.0001054,2]
[352372159,1739065855478,-503.57,0.0001054,2]
[352372160,1739065855490,-500.0,0.0001054,2]
[352372161,1739065855502,-500.0,0.0001054,2]
[352372162,1739065855515,-500.0,0.0001054,2]
[352372163,1739065855527,-500.0,0.0001054,2]
[352372164,1739065855538,-500.0,0.0001054,2]
[352372165,1739065855549,-500.0,0.0001054,2]
[352372166,1739065855561,-500.0,0.0001054,2]
[352372167,1739065855573,-535.45,0.0001054,2]
[352372168,1739065855585,-692.86,0.0001054,2]
[352372169,1739065855597,-500.0,0.0001054,2]
[352372170,1739065855609,-685.54,0.0001054,2]
[352372171,1739065855622,-581.47245907,0.0001054,2]
[352372172,1739065855633,-500.0,0.0001054,2]
[352372173,1739065855645,-500.0,0.0001054,2]
[352372174,1739065855657,-500.0,0.0001054,2]
[352372175,1739065855668,-672.36,0.0001054,2]
[352372176,1739065855680,-500.0,0.0001054,2]
[352372177,1739065855692,-500.0,0.0001054,2]
[352372178,1739065855704,-716.17,0.0001054,2]
[352372179,1739065855715,-500.0,0.0001054,2]
[352372180,1739065855729,-500.0,0.0001054,2]
[352372181,1739065855740,-500.0,0.0001054,2]
[352372182,1739065855751,-500.0,0.0001054,2]
[352372183,1739065855763,-500.0,0.0001054,2]
[352372184,1739065855775,-251.78416326,0.0001054,2]
[352372185,1739065855786,-500.0,0.0001054,2]
[352372186,1739065855798,-500.0,0.0001054,2]
[352372187,1739065855810,-500.0,0.0001054,2]
[352372188,1739065855821,-500.0,0.0001054,2]
[352372189,1739065855832,-505.74040818,0.0001054,2]
[352372190,1739065855843,-500.0,0.0001054,2]
[352372191,1739065855854,-1452.54,0.0001054,2]
[352372192,1739065855866,-500.0,0.0001054,2]
[352372193,1739065855877,-919.49,0.0001054,2]
[352372194,1739065855891,-1599.2,0.0001054,2]
[352372195,1739065855903,-500.0,0.0001054,2]
[352372196,1739065855915,-500.0,0.0001054,2]
[352372197,1739065855927,-500.0,0.0001054,2]
[352372198,1739065855938,-302.41950984,0.0001054,2]
[352372199,1739065855950,-1019.85,0.0001054,2]
[352372200,1739065855961,-1931.5,0.0001054,2]
[352372201,1739065855972,-836.62,0.0001054,2]
[352372202,1739065855984,-500.0,0.0001054,2]
[352372203,1739065855995,-500.0,0.0001054,2]
[352372204,1739065856007,-500.0,0.0001054,2]
[352372205,1739065856018,-1850.11,0.0001054,2]
[352372206,1739065856030,-500.0,0.0001054,2]
[352372207,1739065856041,-830.1,0.0001054,2]
[352372208,1739065856053,-837.23,0.0001054,2]
[352372209,1739065856064,-1605.72,0.0001054,2]
[352372210,1739065856075,-1476.07,0.0001054,2]
[352372211,1739065856087,-2142.18,0.0001054,2]
[352372212,1739065856101,-500.0,0.0001054,2]
[352372213,1739065856114,-500.0,0.0001054,2]
[352372214,1739065856125,-961.51,0.0001054,2]
[352372215,1739065856137,-500.0,0.0001054,2]
[352372216,1739065856148,-500.0,0.0001054,2]
[352372217,1739065856160,-829.85,0.0001054,2]
[352372218,1739065856173,-1156.22,0.0001054,2]
[352372219,1739065856185,-629.87,0.0001054,2]
[352372220,1739065856197,-1910.75,0.0001054,2]
[352372221,1739065856209,-500.0,0.0001054,2]
[352372222,1739065856221,-500.0,0.0001054,2]
[352372223,1739065856233,-729.05,0.0001054,2]
[352372224,1739065856244,-500.0,0.0001054,2]
[352372225,1739065856256,-500.0,0.0001054,2]
[352372226,1739065856267,-1292.26,0.0001054,2]
[352372227,1739065856276,-1023.31,0.0001054,2]
[352372228,1739065856286,-500.0,0.0001054,2]
[352372229,1739065856295,-500.0,0.0001054,2]
[352372230,1739065856304,-632.67775678,0.0001054,2]
[352372231,1739065856313,-1324.77,0.0001054,2]
[352372232,1739065856322,-1235.9,0.0001054,2]
[352372233,1739065856331,-179.00054975,0.0001054,2]
[352372234,1739065856341,-574.84,0.0001054,2]
[352372235,1739065856351,-500.0,0.0001054,2]
[352372236,1739065856360,-500.0,0.0001054,2]
[352372237,1739065856370,-678.2,0.0001054,2]
[352372238,1739065856380,-1451.54,0.0001054,2]
[352372239,1739065856389,-851.41,0.0001054,2]
[352372240,1739065856399,-500.0,0.0001054,2]
[352372241,1739065856408,-500.0,0.0001054,2]
[352372242,1739065856417,-500.0,0.0001054,2]
[352372243,1739065856427,-500.0,0.0001054,2]
[352372244,1739065856436,-1660.93,0.0001054,2]
[352372245,1739065856446,-500.0,0.0001054,2]
[352372246,1739065856455,-2348.11,0.0001054,2]
[352372247,1739065856464,-500.0,0.0001054,2]
[352372248,1739065856475,-940.4,0.0001054,2]
[352372249,1739065856484,-500.0,0.0001054,2]
[352372250,1739065856494,-3337.18,0.0001054,2]
[352372251,1739065856503,-2430.64,0.0001054,2]
[352372252,1739065856513,-500.0,0.0001054,2]
[352372253,1739065856522,-500.0,0.0001054,2]
[352372254,1739065856531,-500.0,0.0001054,2]
[352372255,1739065856541,-1070.1,0.0001054,2]
[352372256,1739065856550,-2276.95,0.0001054,2]
[352372257,1739065856560,-672.03,0.0001054,2]
[352372258,1739065856569,-1406.86,0.0001054,2]
[352372259,1739065856578,-500.0,0.0001054,2]
[352372260,1739065856587,-960.92,0.0001054,2]
[352372261,1739065856596,-500.0,0.0001054,2]
[352372262,1739065856606,-1197.83,0.0001054,2]
[352372263,1739065856615,-500.0,0.0001054,2]
[352372264,1739065856625,-908.43,0.0001054,2]
[352372265,1739065856634,-1585.45,0.0001054,2]
[352372266,1739065856643,-500.0,0.0001054,2]
[352372267,1739065856960,-669.33,0.0001054,2]
[352372268,1739065856986,-504.04,0.0001054,2]
[352372269,1739065857003,-500.0,0.0001054,2]
[352372270,1739065857013,-1615.81,0.0001054,2]
[352372271,1739065857023,-500.0,0.0001054,2]
[352372272,1739065857033,-500.0,0.0001054,2]
[352372273,1739065857042,-500.0,0.0001054,2]
[352372274,1739065857051,-500.0,0.0001054,2]
[352372275,1739065857061,-1554.99,0.0001054,2]
[352372276,1739065857070,-500.0,0.0001054,2]
[352372277,1739065857079,-904.99,0.0001054,2]
[352372278,1739065857089,-1316.45,0.0001054,2]
[352372279,1739065857102,-500.0,0.0001054,2]
[352372280,1739065857111,-500.0,0.0001054,2]
[352372281,1739065857121,-508.24472506,0.0001054,2]
[352372282,1739065857130,-773.68,0.0001054,2]
[352372283,1739065857141,-1321.5,0.0001054,2]
[352372284,1739065857151,-563.42,0.0001054,2]
[352372285,1739065857160,-1652.3,0.0001054,2]
[352372286,1739065857171,-1176.32,0.0001054,2]
[352372287,1739065857181,-577.54043585,0.0001054,2]
[352372288,1739065857190,-500.0,0.0001054,2]
[352372289,1739065857200,-500.0,0.0001054,2]
[352372290,1739065857209,-2093.5,0.0001054,2]
[352372291,1739065857218,-2834.78,0.0001054,2]
[352372292,1739065857228,-500.0,0.0001054,2]
[352372293,1739065857237,-638.46018699,0.0001054,2]
[352372294,1739065857247,-1276.77,0.0001054,2]
[352372295,1739065857256,-500.0,0.0001054,2]
[352372296,1739065857266,-1561.18,0.0001054,2]
[352372297,1739065857275,-605.41,0.0001054,2]
[352372298,1739065857284,-1124.08,0.0001054,2]
[352372299,1739065857293,-500.0,0.0001054,2]
[352372300,1739065857303,-1196.21,0.0001054,2]
[352372301,1739065857312,-500.0,0.0001054,2]
[352372302,1739065857321,-500.0,0.0001054,2]
[352372303,1739065857330,-695.25,0.0001054,2]
[352372304,1739065857339,-518.29,0.0001054,2]
[352372305,1739065857349,-500.0,0.0001054,2]
[352372306,1739065857358,-523.24458222,0.0001054,2]
[352372307,1739065857367,-500.0,0.0001054,2]
[352372308,1739065857376,-1471.32,0.0001054,2]
[352372309,1739065857386,-1636.79,0.0001054,2]
[352372310,1739065857395,-507.93937424,0.0001054,2]
[352372311,1739065857404,-500.0,0.0001054,2]
[352372312,1739065857413,-500.0,0.0001054,2]
[352372313,1739065857423,-1949.4,0.0001054,2]
[352372314,1739065857432,-500.0,0.0001054,2]
[352372315,1739065857441,-627.54,0.0001054,2]
[352372316,1739065857450,-1887.98,0.0001054,2]
[352372317,1739065857459,-500.0,0.0001054,2]
[352372318,1739065857469,-1518.61,0.0001054,2]
[352372319,1739065857478,-816.06,0.0001054,2]
[352372320,1739065857487,-500.0,0.0001054,2]
[352372321,1739065857495,-500.0,0.0001054,2]
[352372322,1739065857507,-700.89,0.0001054,2]
[352372323,1739065857516,-2133.9,0.0001054,2]
[352372324,1739065857525,-565.73,0.0001054,2]
[352372325,1739065857534,-378.35528219,0.0001054,2]
[352372326,1739065857543,-500.0,0.0001054,2]
[352372328,1739065857552,-500.0,0.0001054,2]
[352372329,1739065857561,-500.0,0.0001054,2]
[352372330,1739065857570,-500.0,0.0001054,2]
[352372331,1739065857580,-2090.87,0.0001054,2]
[352372332,1739065857589,-1114.73,0.0001054,2]
[352372333,1739065857598,-2216.88,0.0001054,2]
[352372334,1739065857607,-500.0,0.0001054,2]
[352372335,1739065857615,-525.77036059,0.0001054,2]
[352372336,1739065857625,-500.0,0.0001054,2]
[352372337,1739065857634,-372.40332435,0.0001054,2]
[352372338,1739065857642,-1425.9,0.0001054,2]
[352372339,1739065857651,-4849.59,0.0001054,2]
[352372340,1739065857661,-500.0,0.0001054,2]
[352372341,1739065857671,-2088.29,0.0001054,2]
[352372342,1739065857680,-864.75,0.0001054,2]
[352372343,1739065857689,-500.0,0.0001054,2]
[352372344,1739065857699,-631.13,0.0001054,2]
[352372345,1739065857708,-500.0,0.0001054,2]
[352372346,1739065857717,-3006.06,0.0001054,2]
[352372347,1739065857727,-500.0,0.0001054,2]
[352372348,1739065857737,-1354.44,0.0001054,2]
[352372349,1739065857747,-500.0,0.0001054,2]
[352372350,1739065857756,-500.0,0.0001054,2]
[352372351,1739065857766,-500.0,0.0001054,2]
[352372352,1739065857776,-500.0,0.0001054,2]
[352372353,1739065857785,-325.08,0.0001054,2]
[352372354,1739065857794,-587.51477152,0.00010541,2]
[352372355,1739065857803,-500.0,0.00010541,2]
[352372356,1739065857812,-500.0,0.00010541,2]
[352372357,1739065857821,-464.82250159,0.00010541,2]
[352372358,1739065857831,-411.59375608,0.00010541,2]
[352372359,1739065857840,-510.80076844,0.00010541,2]
[352372360,1739065857849,-505.81019923,0.00010541,2]
[352372361,1739065857858,-208.80925526,0.00010541,2]
[352372362,1739065857867,-571.7815419,0.00010541,2]
[352372363,1739065857875,-317.14785209,0.00010541,2]
[352372364,1739065857885,-511.96475796,0.00010541,2]
[352372365,1739065857894,-500.0,0.00010541,2]
[352372366,1739065857904,-500.0,0.00010541,2]
[352372367,1739065857915,-500.0,0.00010541,2]
[352372368,1739065857926,-510.92114004,0.00010541,2]
[352372369,1739065857936,-574.10896891,0.00010541,2]
[352372370,1739065857947,-504.95543612,0.00010541,2]
[352372371,1739065857958,-209.7892498,0.00010541,2]
[352372372,1739065857967,-506.13,0.00010541,2]
[352372373,1739065857977,-500.0,0.00010541,2]
[352372374,1739065857986,-500.0,0.00010541,2]
[352372375,1739065857995,-500.0,0.00010541,2]
[352372376,1739065858004,-198.14384789,0.00010541,2]
[352372377,1739065858014,-500.0,0.00010541,2]
[352372378,1739065858023,-500.0,0.00010541,2]
[352372379,1739065858034,-500.0,0.00010541,2]
[352372380,1739065858043,-510.39880563,0.00010541,2]
[352372381,1739065858053,-500.0,0.00010541,2]
[352372382,1739065858064,-500.0,0.00010541,2]
[352372383,1739065858073,-500.0,0.00010541,2]
[352372384,1739065858083,-500.0,0.00010541,2]
[352372385,1739065858094,-500.0,0.00010541,2]
[352372386,1739065858103,-511.97286931,0.00010541,2]
[352372387,1739065858113,-500.0,0.00010541,2]
[352372388,1739065858123,-500.0,0.00010541,2]
[352372389,1739065858131,-500.0,0.00010541,2]
[352372390,1739065858142,-500.0,0.00010541,2]
[352372391,1739065858151,-500.0,0.00010541,2]
[352372392,1739065858160,-500.0,0.00010541,2]
[352372393,1739065858170,-500.0,0.00010541,2]
[352372394,1739065858179,-500.0,0.00010541,2]
[352372395,1739065858189,-576.68683225,0.00010541,2]
[352372396,1739065858197,-445.87434438,0.00010541,2]
[352372397,1739065858206,-500.0,0.00010541,2]
[352372398,1739065858216,-500.0,0.00010541,2]
[352372399,1739065858224,-500.0,0.00010541,2]
[352372400,1739065858234,-500.0,0.00010541,2]
[352372401,1739065858244,-500.0,0.00010541,2]
[352372402,1739065858252,-505.59560868,0.00010541,2]
[352372403,1739065858262,-500.0,0.00010541,2]
[352372404,1739065858272,-500.0,0.00010541,2]
[352372405,1739065858282,-500.0,0.00010541,2]
[352372406,1739065858291,-500.0,0.00010541,2]
[352372407,1739065858303,-500.0,0.00010541,2]
[352372408,1739065858312,-500.0,0.00010541,2]
[352372409,1739065858321,-174.15171293,0.00010541,2]
[352372410,1739065858330,-500.0,0.00010541,2]
[352372411,1739065858340,-505.16596855,0.00010541,2]
[352372412,1739065858349,-500.0,0.00010541,2]
[352372413,1739065858358,-500.0,0.00010541,2]
[352372414,1739065858367,-500.0,0.00010541,2]
[352372415,1739065858376,-500.0,0.00010541,2]
[352372416,1739065858387,-500.0,0.00010541,2]
[352372417,1739065858396,-500.0,0.00010541,2]
[352372418,1739065858406,-500.0,0.00010541,2]
[352372419,1739065858415,-500.0,0.00010541,2]
[352372420,1739065858424,-500.0,0.00010541,2]
[352372421,1739065858433,-500.0,0.00010541,2]
[352372422,1739065858443,-500.0,0.00010541,2]
[352372423,1739065858452,-500.0,0.00010541,2]
[352372424,1739065858462,-500.0,0.00010541,2]
[352372425,1739065858473,-500.0,0.00010541,2]
[352372426,1739065858482,-500.0,0.00010541,2]
[352372427,1739065858491,-500.0,0.00010541,2]
[352372428,1739065858500,-500.0,0.00010541,2]
[352372429,1739065858509,-500.0,0.00010541,2]
[352372430,1739065858519,-500.0,0.00010541,2]
[352372431,1739065858528,-500.0,0.00010541,2]
[352372432,1739065858537,-500.0,0.00010541,2]
[352372433,1739065858547,-500.0,0.00010541,2]
[352372434,1739065858557,-500.0,0.00010541,2]
[352372435,1739065858566,-639.4754257,0.00010541,2]
[352372436,1739065858576,-500.0,0.00010541,2]
[352372437,1739065858586,-500.0,0.00010541,2]
[352372438,1739065858595,-500.0,0.00010541,2]
[352372439,1739065858604,-500.0,0.00010541,2]
[352372440,1739065858613,-500.0,0.00010541,2]
[352372441,1739065858622,-500.0,0.00010541,2]
[352372442,1739065858631,-500.0,0.00010541,2]
[352372443,1739065858641,-572.40827311,0.00010541,2]
[352372444,1739065858650,-500.0,0.00010541,2]
[352372445,1739065858659,-509.09183118,0.00010541,2]
[352372446,1739065858668,-514.77905871,0.00010541,2]
[352372447,1739065858677,-500.0,0.00010541,2]
[352372448,1739065858686,-500.0,0.00010541,2]
[352372449,1739065858695,-500.0,0.00010541,2]
[352372450,1739065858704,-500.0,0.00010541,2]
[352372451,1739065858713,-500.0,0.00010541,2]
[352372452,1739065858726,-500.0,0.00010541,2]
[352372453,1739065858735,-500.0,0.00010541,2]
[352372454,1739065858744,-500.0,0.00010541,2]
[352372455,1739065858752,-500.0,0.00010541,2]
[352372456,1739065858762,-509.90488814,0.00010541,2]
[352372457,1739065858772,-500.0,0.00010541,2]
[352372458,1739065858781,-500.0,0.00010541,2]
[352372459,1739065858790,-500.0,0.00010541,2]
[352372460,1739065858800,-510.49645774,0.00010541,2]
[352372461,1739065858808,-505.7412866,0.00010541,2]
[352372462,1739065858818,-500.0,0.00010541,2]
[352372463,1739065858827,-500.0,0.00010541,2]
[352372464,1739065858836,-500.0,0.00010541,2]
[352372465,1739065858845,-514.64081989,0.00010541,2]
[352372466,1739065858854,-500.0,0.00010541,2]
[352372467,1739065858863,-500.0,0.00010541,2]
[352372468,1739065858872,-500.0,0.00010541,2]
[352372469,1739065858881,-500.0,0.00010541,2]
[352372470,1739065858890,-504.21430174,0.00010541,2]
[352372471,1739065858899,-500.0,0.00010541,2]
[352372472,1739065858908,-500.0,0.00010541,2]
[352372473,1739065858916,-504.33978129,0.00010541,2]
[352372474,1739065858926,-500.0,0.00010541,2]
[352372475,1739065858935,-500.0,0.00010541,2]
[352372476,1739065858944,-500.0,0.00010541,2]
[352372477,1739065858953,-521.81167564,0.00010541,2]
[352372478,1739065858963,-500.0,0.00010541,2]
[352372479,1739065858972,-500.0,0.00010541,2]
[352372480,1739065858981,-500.0,0.00010541,2]
[352372481,1739065858990,-500.0,0.00010541,2]
[352372482,1739065858999,-513.02222883,0.00010541,2]
[352372483,1739065859008,-500.0,0.00010541,2]
[352372484,1739065859017,-511.65461179,0.00010541,2]
[352372485,1739065859026,-500.0,0.00010541,2]
[352372486,1739065859035,-517.69,0.00010541,2]
[352372487,1739065859044,-500.0,0.00010541,2]
[352372488,1739065859053,-500.0,0.00010541,2]
[352372489,1739065859062,-500.0,0.00010541,2]
[352372490,1739065859071,-554.93,0.00010541,2]
[352372491,1739065859080,-500.0,0.00010541,2]